bitfinex/quotes_ETHUSD_20250129
["timestamp","ask_amount","ask_price","bid_price","bid_amount"]
[1738111024001,0.07576658,3103.5,3103.4,3.22227]
[1738111024205,0.7714,3104.1,3103.5,3.22207]
[1738111024704,4.04344,3104.5,3103.8,0.55]
[1738111024875,0.0402675,3104.4,3103.5,6.22209]
[1738111025076,3.22155,3104.1,3103.6,0.55]
[1738111025276,3.22155,3104.1,3103.4,3.55]
[1738111025510,3.22167,3104.0,3103.6,0.55]
[1738111025712,0.04027118,3104.2,3103.6,0.55]
[1738111025918,3.2616324,3104.3,3103.6,0.55]
[1738111026076,3.22136,3104.3,3103.6,3.58221692]
[1738111026280,0.8223,3104.5,3104.0,3.22158]
[1738111026515,4.0533,3104.7,3104.1,3.543628]
[1738111026811,4.0533,3104.7,3104.1,3.22147]
[1738111027015,4.0533,3104.7,3104.2,0.55]
[1738111028527,4.0533,3104.7,3104.2,3.22143]
[1738111028880,3.22104,3104.6,3104.1,0.55]
[1738111029116,4.0533,3104.7,3104.1,0.55]
[1738111029303,3.22103,3104.6,3104.1,0.55]
[1738111029823,4.0533,3104.7,3104.1,0.55]
[1738111030029,4.0533,3104.7,3104.1,3.77154]
[1738111030231,4.0533,3104.7,3104.1,0.55]
[1738111031305,4.0533,3104.7,3104.1,4.26288016]
[1738111031828,4.0533,3104.7,3104.1,4.2306682]
[1738111032198,3.22102,3104.6,3104.1,4.2306682]
[1738111032898,3.22102,3104.6,3104.1,4.26288016]
[1738111033112,4.0533,3104.7,3104.1,4.26288016]
[1738111033308,4.0533,3104.7,3104.2,0.42628802]
[1738111033513,3.221,3104.7,3104.2,0.42628802]
[1738111033915,3.22103,3104.6,3104.2,0.42628802]
[1738111034127,3.22103,3104.6,3104.1,1.04137016]
[1738111034511,6.44122,3105.0,3104.1,0.03221196]
[1738111034711,2.9180863,3104.5,3103.6,0.753]
[1738111034916,3.22164,3104.1,3103.6,0.753]
[1738111035116,0.07604118,3104.0,3103.7,0.55]
[1738111035300,3.22175,3103.9,3103.7,0.55]
[1738111035636,0.07580779,3103.8,3103.7,0.55]
[1738111035822,0.07580779,3103.8,3103.7,0.9803]
[1738111036214,3.22164,3104.1,3103.7,0.9803]
[1738111036417,0.07580779,3103.8,3103.7,0.9803]
[1738111036935,3.22166,3104.0,3103.7,0.9803]
[1738111037104,0.07580779,3103.9,3103.5,3.0]
[1738111038238,0.07580779,3103.9,3103.5,6.22213]
[1738111039149,0.07580779,3103.9,3103.8,7.58325]
[1738111039448,0.1604757,3105.4,3105.3,3.2203]
[1738111039646,0.1604757,3105.4,3105.3,3.7703]
[1738111039938,0.1604757,3105.4,3105.3,0.55]
[1738111039939,0.23113884,3105.4,3105.3,0.55]
[1738111040927,0.23113884,3105.4,3105.3,3.7703]
[1738111041129,0.23113884,3105.4,3105.3,0.55]
[1738111041551,0.23113884,3105.4,3105.0,3.0]
[1738111042019,0.23113884,3105.4,3105.1,0.55]
[1738111043221,0.23113884,3105.4,3105.1,1.54913]
[1738111043653,0.23113884,3105.4,3105.1,4.76954]
[1738111043828,0.23113884,3105.4,3105.3,3.7703]
[1738111044030,0.23113884,3105.4,3105.3,4.6023]
[1738111044235,0.1604757,3105.4,3105.3,4.6023]
[1738111044439,0.1604757,3105.4,3105.3,8.38456]
[1738111045152,0.23113884,3105.4,3105.3,8.38456]
[1738111046443,0.23113884,3105.4,3104.9,0.832]
[1738111046643,0.23113884,3105.4,3105.1,3.0]
[1738111046843,0.23113884,3105.4,3105.1,6.2205]
[1738111047049,0.23113884,3105.4,3105.1,3.0]
[1738111047838,0.23113884,3105.4,3105.0,0.55]
[1738111048039,0.23113884,3105.4,3104.4,0.64053631]
[1738111048040,3.22035,3105.3,3104.6,4.05293]
[1738111048229,3.26060609,3105.3,3104.6,4.05293]
[1738111048430,0.07159169,3105.2,3104.6,4.05293]
[1738111048951,3.26075606,3105.1,3104.4,3.22122]
[1738111049155,0.7596,3105.0,3104.4,3.22122]
[1738111049360,0.07159169,3104.9,3104.5,0.405322]
[1738111049858,0.07159169,3104.9,3104.5,3.626442]
[1738111050032,0.07159169,3104.9,3104.6,0.55]
[1738111050232,0.07159169,3104.9,3104.6,3.77095]
[1738111050452,0.7596,3105.0,3104.6,3.77095]
[1738111050658,0.07197016,3104.8,3104.7,0.4176272]
[1738111050818,0.7596,3105.0,3104.7,0.4176272]
[1738111051023,0.7596,3105.0,3104.3,0.832]
[1738111051024,0.07197016,3104.8,3104.3,3.22133]
[1738111051231,3.26101878,3104.9,3104.3,3.22133]
[1738111051523,3.221,3104.7,3104.0,4.02132]
[1738111051749,3.22102,3104.6,3104.1,0.402132]
[1738111051947,0.0719289,3104.5,3104.2,0.55]
[1738111052156,0.0719289,3104.5,3103.8,3.22177]
[1738111052463,0.0719289,3104.5,3104.1,3.77152]
[1738111052819,3.22093,3104.7,3104.1,3.77152]
[1738111053321,0.07174319,3104.6,3104.1,3.77152]
[1738111053634,0.07174319,3104.6,3104.1,4.15189325]
[1738111056254,0.07174319,3104.6,3104.1,0.93037325]
[1738111056255,3.29281319,3104.6,3104.1,0.93037325]
[1738111056427,3.29281319,3104.6,3104.1,0.55]
[1738111056626,3.29281319,3104.6,3103.7,0.7997]
[1738111056627,3.26139572,3104.5,3103.7,7.02163]
[1738111056854,3.2216,3104.1,3103.4,3.99166]
[1738111057251,3.2216,3104.1,3103.5,6.22216]
[1738111057560,3.22186,3103.8,3103.2,3.22245]
[1738111057752,4.04076,3103.8,3103.3,3.22235]
[1738111057946,0.0713992,3103.7,3103.4,3.0]
[1738111058122,4.04076,3103.8,3103.4,3.0]
[1738111058325,4.04076,3103.8,3103.5,0.55]
[1738111058326,0.8189,3103.8,3103.5,0.55]
[1738111058525,0.07138544,3103.7,3103.5,0.55]
[1738111058840,0.8189,3103.8,3103.5,0.55]
[1738111059352,0.07126158,3103.7,3103.5,0.55]
[1738111059660,3.22208,3103.6,3102.9,3.22272]
[1738111059863,0.07126158,3103.6,3102.9,0.403902]
[1738111060063,0.07126158,3103.6,3103.4,3.22218]
[1738111060231,3.22154,3104.1,3103.5,0.55]
[1738111060434,3.22184,3103.9,3103.5,0.55]
[1738111060635,0.7923,3103.8,3102.9,3.626662]
[1738111060954,0.04027787,3103.7,3102.8,3.0]
[1738111061150,3.22257,3103.2,3102.4,3.22322]
[1738111061352,3.22257,3103.2,3102.5,0.55]
[1738111061670,3.22228,3103.4,3102.4,0.0322281]
[1738111061854,3.22228,3103.4,3102.7,3.22296]
[1738111062231,3.22253,3103.2,3102.5,3.2232]
[1738111062436,3.26289492,3103.1,3102.5,3.2232]
[1738111062830,0.04028492,3103.1,3102.3,3.2234]
[1738111063038,3.22292,3102.8,3102.2,3.22351]
[1738111063342,3.22292,3102.8,3102.3,0.55]
[1738111064142,3.22301,3102.7,3102.0,3.22368]
[1738111064344,3.22313,3102.6,3102.0,3.22368]
[1738111064537,0.04028964,3102.7,3102.3,0.55]
[1738111064738,3.26331964,3102.7,3102.3,0.55]
[1738111065035,4.03252044,3102.9,3102.2,3.77344]
[1738111065270,0.07033279,3102.6,3102.2,3.77344]
[1738111065438,4.03252044,3102.9,3102.2,3.77344]
[1738111065634,0.07033279,3102.5,3102.0,3.726007]
[1738111065833,3.2229,3102.8,3102.0,0.726007]
[1738111066037,0.07033279,3102.4,3102.1,3.22362]
[1738111066237,1.49492404,3102.9,3102.1,3.22362]
[1738111066466,0.07033279,3102.3,3102.2,3.80574453]
[1738111066649,0.7694,3102.9,3102.4,3.22326]
[1738111067039,0.07033279,3102.8,3102.4,3.22326]
[1738111067779,0.07033279,3102.8,3102.7,3.77299]
[1738111067981,0.07033279,3102.8,3102.7,6.8052158]
[1738111068271,4.03147,3103.9,3103.3,3.22229]
[1738111068635,0.07033279,3103.8,3103.3,3.22229]
[1738111069363,0.04027719,3103.7,3103.2,0.55]
[1738111069568,3.26230719,3103.7,3103.2,0.55]
[1738111069871,0.07033279,3103.6,3102.9,3.22268]
[1738111070050,4.03209,3103.3,3102.8,3.0]
[1738111070251,0.04028184,3103.2,3102.4,0.7805]
[1738111070453,3.22283,3102.9,3102.2,3.22346]
[1738111070673,3.22283,3102.9,3102.3,3.0]
[1738111070875,3.22291,3102.8,3102.2,3.22346]
[1738111071062,0.07033279,3102.8,3102.2,3.22344]
[1738111071242,0.07033279,3102.8,3102.3,3.400394]
[1738111071442,0.07033279,3102.8,3102.3,6.623794]
[1738111073185,0.07033279,3102.8,3102.4,3.22331]
[1738111074775,0.07033279,3102.8,3102.3,3.400394]
[1738111074994,0.07033279,3102.8,3102.3,6.22338]
[1738111075192,0.07033279,3102.8,3102.3,3.0]
[1738111075563,0.07033279,3102.8,3102.3,6.22335]
[1738111077079,0.07033279,3102.8,3102.5,3.22317]
[1738111077595,3.22259,3103.1,3102.5,3.22317]
[1738111077893,0.06925197,3102.7,3102.5,3.22317]
[1738111078191,0.06925197,3102.6,3102.5,3.22317]
[1738111078631,3.22259,3103.1,3102.5,3.22317]
[1738111078898,0.06924509,3102.6,3102.4,3.22329]
[1738111079058,3.22269,3103.0,3102.4,3.22329]
[1738111079253,0.06924509,3102.5,3102.4,3.22329]
[1738111079490,3.22269,3103.0,3102.4,3.92296]
[1738111079691,0.06924509,3102.5,3102.4,3.92296]
[1738111079890,3.22269,3103.0,3102.5,3.2232]
[1738111080192,0.06924509,3102.9,3102.5,3.2232]
[1738111080384,0.06924509,3102.9,3102.5,3.22319]
[1738111080582,3.22249,3103.2,3102.6,3.22301]
[1738111080772,0.06924509,3103.1,3102.5,3.86785]
[1738111080971,0.06924509,3103.1,3102.5,3.22319]
[1738111081197,0.06924509,3103.1,3102.9,3.22278]
[1738111081568,0.7824,3103.6,3102.9,3.22278]
[1738111081775,0.06924509,3103.5,3103.1,3.22257]
[1738111081963,0.06924509,3103.5,3103.2,0.55]
[1738111082160,7.05465778,3104.2,3103.6,0.55]
[1738111082161,3.22152,3104.2,3103.6,0.55]
[1738111082365,0.06924509,3104.1,3104.0,7.52784]
[1738111082564,3.83313778,3105.7,3104.7,3.22085]
[1738111082565,0.7824,3105.2,3104.7,3.22085]
[1738111082800,0.06905919,3105.1,3104.8,3.22073]
[1738111082969,0.06905919,3105.1,3104.6,0.55]
[1738111083366,0.06905919,3105.1,3104.7,3.22085]
[1738111083612,0.06905919,3105.1,3105.0,3.77061]
[1738111084011,0.1604757,3105.4,3105.0,3.77061]
[1738111084305,0.06905919,3105.1,3105.0,0.55]
[1738111084476,0.1604757,3105.4,3105.0,3.7706]
[1738111084676,0.06905919,3105.1,3105.0,3.7706]
[1738111084908,0.1604757,3105.4,3105.0,3.7706]
[1738111085068,0.06905919,3105.1,3105.0,3.7706]
[1738111085265,0.1604757,3105.4,3105.0,3.7706]
[1738111085469,0.06905919,3105.1,3105.0,3.7706]
[1738111085666,0.1604757,3105.4,3105.0,3.7706]
[1738111085867,0.06905919,3105.1,3105.0,3.7706]
[1738111086374,0.1604757,3105.4,3105.0,3.7706]
[1738111086686,0.06905919,3105.3,3105.0,3.7706]
[1738111087084,3.22069,3105.0,3104.4,4.0436]
[1738111087282,3.28940919,3105.3,3104.4,1.32485632]
[1738111087484,3.22035,3105.3,3104.7,3.22085]
[1738111087710,0.06905919,3105.2,3104.7,3.22085]
[1738111087897,0.06905919,3105.2,3104.6,6.22099]
[1738111087898,3.28945919,3105.2,3104.6,6.22099]
[1738111088287,0.06905919,3105.2,3104.8,3.22073]
[1738111088487,0.06905919,3105.2,3104.9,3.6009638]
[1738111088682,0.1604757,3105.4,3104.9,3.6009638]
[1738111088922,0.07043549,3105.1,3104.9,3.22067]
[1738111089209,0.07179132,3105.0,3104.9,3.22067]
[1738111089390,0.07179132,3105.0,3104.9,3.98487]
[1738111089708,0.1604757,3105.4,3105.0,3.22059]
[1738111090079,0.1604757,3105.4,3104.7,3.7709]
[1738111090285,0.1604757,3105.4,3104.7,4.14799]
[1738111090481,0.1604757,3105.4,3104.8,3.2208]
[1738111090717,3.3806757,3105.4,3104.8,3.2208]
[1738111091105,0.1604757,3105.4,3104.9,3.22071]
[1738111091705,0.1604757,3105.4,3105.1,3.2205]
[1738111091907,0.1604757,3105.4,3105.2,0.3252705]
[1738111093220,0.1604757,3105.4,3105.2,3.5456505]
[1738111093418,0.1604757,3105.4,3105.3,3.7703]
[1738111095325,0.23241833,3105.4,3105.3,3.7703]
[1738111096424,0.23241833,3105.4,3105.3,6.7703]
[1738111096725,0.23241833,3105.4,3105.3,7.80512701]
[1738111097398,0.1604757,3105.4,3105.3,7.80512701]
[1738111097730,5.7e-06,3105.4,3105.3,8.60872701]
[1738111098624,0.8283,3107.7,3105.5,0.55]
[1738111098807,0.8283,3107.7,3107.1,0.8036]
[1738111099007,0.07237579,3107.6,3107.1,4.02194]
[1738111099194,0.07237579,3107.6,3107.2,0.402194]
[1738111099399,0.07237579,3107.6,3107.3,3.76813]
[1738111099630,4.04102,3108.0,3107.3,3.76813]
[1738111099820,0.07237579,3107.5,3106.7,0.8193]
[1738111100021,0.8235,3107.3,3106.9,3.21863]
[1738111100334,3.25855857,3107.2,3106.4,3.21911]
[1738111100513,3.25855857,3107.2,3106.3,0.8193]
[1738111100707,3.25855857,3107.2,3106.4,0.55]
[1738111100708,3.21882,3106.8,3106.4,0.55]
[1738111100907,3.21789,3107.7,3106.7,0.55]
[1738111101110,0.11261124,3107.6,3106.3,3.8193]
[1738111101419,3.21855,3107.0,3106.4,3.60107]
[1738111101624,3.21853,3107.1,3106.4,3.60107]
[1738111101625,3.21853,3107.1,3106.5,0.55]
[1738111101824,3.21856,3107.0,3106.5,0.55]
[1738111102026,3.29091579,3107.0,3106.5,0.55]
[1738111102225,0.07237579,3107.0,3106.5,0.55]
[1738111102538,0.07237579,3107.0,3106.7,0.55]
[1738111102737,3.21823,3107.3,3106.7,0.55]
[1738111102896,3.33094722,3107.2,3106.7,0.55]
[1738111103332,0.07237579,3107.2,3106.7,0.55]
[1738111103552,3.29072579,3107.2,3106.7,0.55]
[1738111103728,3.21866,3106.9,3106.3,7.03854]
[1738111104038,0.07368164,3106.8,3106.4,0.55]
[1738111104260,0.07368164,3106.8,3106.7,3.76884]
[1738111104606,4.02885,3107.5,3106.8,3.2187]
[1738111105157,0.8108,3107.5,3107.0,3.21851]
[1738111105650,4.02884,3107.5,3106.9,0.801]
[1738111105832,4.02884,3107.5,3106.9,4.01958]
[1738111106033,0.8108,3107.5,3107.0,3.21851]
[1738111106234,3.21785,3107.7,3107.0,3.21851]
[1738111106434,3.21792,3107.6,3107.0,3.21851]
[1738111106637,3.21785,3107.7,3107.1,3.21843]
[1738111107210,3.21761,3107.9,3107.2,3.80049131]
[1738111107409,3.21761,3107.9,3107.2,4.47021013]
[1738111107625,0.04022392,3107.9,3106.9,1.52804629]
[1738111107826,3.21799,3107.6,3106.9,1.52804629]
[1738111108124,3.21799,3107.6,3107.0,0.55]
[1738111108320,0.7704,3108.0,3107.0,0.55]
[1738111108321,0.7704,3108.0,3107.2,0.55]
[1738111108684,3.21741,3108.1,3107.4,3.21804]
[1738111108813,3.25763665,3108.1,3107.5,3.218]
[1738111109215,3.21741,3108.1,3107.5,3.218]
[1738111109442,3.21756,3108.0,3107.4,3.64685313]
[1738111109647,3.21756,3108.0,3107.4,6.86495313]
[1738111110159,0.0750007,3107.9,3107.4,6.86495313]
[1738111110309,3.25755212,3108.2,3107.4,6.86495313]
[1738111110509,0.0750007,3108.1,3106.9,1.52804629]
[1738111110711,3.21855,3107.0,3106.4,3.21914]
[1738111110939,3.21865,3106.9,3106.2,3.21929]
[1738111111139,3.29410394,3106.9,3106.2,3.2514795]
[1738111111358,3.29410394,3106.9,3106.3,3.0]
[1738111111560,3.29410394,3106.9,3106.3,4.239562]
[1738111111938,0.04023688,3106.8,3106.1,3.98373]
[1738111112139,3.21886,3106.7,3106.1,3.98373]
[1738111112320,0.04023688,3106.8,3106.2,3.76936]
[1738111112321,3.21876,3106.8,3106.2,3.76936]
[1738111113144,4.03418,3107.0,3106.2,3.80154992]
[1738111113348,0.07530975,3106.9,3106.4,3.21914]
[1738111115050,0.11554663,3106.9,3106.2,3.76936]
[1738111115363,3.21832,3107.3,3106.6,3.21888]
[1738111115562,0.07493888,3107.2,3106.6,3.76893]
[1738111115746,3.29329888,3107.2,3106.4,3.21916]
[1738111115946,3.21855,3107.0,3106.2,3.21935]
[1738111116250,3.21855,3107.0,3106.3,0.55]
[1738111116251,0.07492514,3106.9,3106.3,0.55]
[1738111116442,0.07492514,3106.9,3106.3,0.5821896]
[1738111116643,0.07492514,3106.9,3106.4,3.21908]
[1738111117667,0.07492514,3106.9,3106.3,3.21925]
[1738111118176,3.29364514,3106.9,3106.3,3.76924]
[1738111119838,3.29364514,3106.9,3106.3,0.55]
[1738111120043,3.21876,3106.8,3106.3,0.55]
[1738111120777,3.29383514,3106.7,3106.1,3.79648961]
[1738111121077,3.21896,3106.6,3106.1,3.0]
[1738111121247,6.43801,3106.6,3106.1,3.0]
[1738111121439,0.07441008,3106.5,3106.1,3.0]
[1738111121644,3.29347008,3106.5,3106.1,3.0]
[1738111122085,3.21933,3106.3,3105.8,0.7783]
[1738111122291,3.25946017,3106.4,3105.8,4.39786]
[1738111122501,0.07436199,3106.2,3105.9,6.21961]
[1738111122794,3.2191,3106.5,3105.9,6.21961]
[1738111122994,0.0742933,3106.4,3106.1,3.21939]
[1738111123164,4.04128,3106.8,3106.2,3.21932]
[1738111123498,0.07419711,3106.7,3106.2,3.21932]
[1738111123805,3.29304711,3106.7,3106.2,3.21932]
[1738111124297,0.07419711,3106.7,3106.3,3.21925]
[1738111124589,0.07419711,3106.7,3106.2,0.38015141]
[1738111124590,3.21858,3107.0,3106.4,3.21912]
[1738111124742,3.29285711,3106.9,3106.4,3.21912]
[1738111124939,3.29283711,3106.9,3106.4,3.21912]
[1738111125382,0.07419711,3106.9,3106.6,3.21892]
[1738111125581,0.8086,3107.5,3106.9,0.55]
[1738111125757,0.07419711,3107.4,3107.2,3.21832]
[1738111125945,0.7658,3107.8,3107.2,3.21832]
[1738111126146,0.07419711,3107.7,3107.3,3.21821]
[1738111126461,3.98352,3107.8,3107.2,3.21832]
[1738111126657,0.07419711,3107.6,3107.3,3.21821]
[1738111126969,0.07419711,3107.5,3107.3,3.21821]
[1738111127148,0.7658,3107.8,3107.3,3.21821]
[1738111127348,3.21742,3108.1,3107.3,3.21821]
[1738111127349,0.07419711,3107.7,3107.5,0.55]
[1738111127573,0.7658,3108.1,3107.6,3.2179]
[1738111127748,0.07419711,3108.0,3107.6,3.2179]
[1738111127944,0.07419711,3108.0,3107.7,3.2178]
[1738111128144,0.07419711,3108.0,3107.8,3.21765]
[1738111128351,3.21727,3108.3,3107.6,3.2179]
[1738111128585,3.21727,3108.3,3107.6,3.21785]
[1738111128750,0.07419711,3108.2,3107.7,3.21771]
[1738111129145,3.29155711,3108.2,3107.6,6.83825258]
[1738111129387,0.07419711,3108.2,3107.8,3.2177]
[1738111129581,3.25740963,3108.3,3107.6,3.62040258]
[1738111129807,0.07419711,3108.2,3107.6,3.62040258]
[1738111130085,0.07419711,3108.2,3107.6,0.40259258]
[1738111130389,3.21747,3108.1,3107.6,3.62049258]
[1738111130582,3.21747,3108.1,3107.7,0.36204926]
[1738111130882,0.07419711,3108.0,3107.7,0.36204926]
[1738111131106,0.07419711,3108.0,3107.7,3.57978926]
[1738111131303,0.07419711,3108.0,3107.7,0.36204926]
[1738111131513,3.25740981,3108.3,3107.7,0.36204926]
[1738111131687,0.07419711,3107.9,3107.6,3.62049258]
[1738111131861,6.43448,3108.3,3107.6,3.62049258]
[1738111132054,0.07419711,3107.8,3107.6,3.62049258]
[1738111132255,6.43448,3108.3,3107.6,3.62049258]
[1738111132547,3.21719,3108.3,3107.6,0.95259258]
[1738111132754,3.21751,3108.0,3107.4,3.99401]
[1738111133074,3.21751,3108.0,3107.4,0.7759]
[1738111133276,0.07480828,3107.9,3107.4,0.7759]
[1738111133478,3.29242828,3107.9,3107.4,0.7759]
[1738111133876,3.21781,3107.7,3107.3,0.55]
[1738111134186,0.07552944,3107.6,3107.3,0.55]
[1738111134390,0.07552944,3107.6,3106.8,4.02974]
[1738111134550,3.21809,3107.5,3106.9,0.402974]
[1738111134758,3.21785,3107.7,3106.9,0.402974]
[1738111135069,3.21808,3107.5,3106.9,3.621594]
[1738111135658,0.07552944,3107.4,3106.9,3.621594]
[1738111135858,3.29367944,3107.4,3106.9,0.402974]
[1738111136060,0.07552944,3107.4,3106.9,0.402974]
[1738111137198,0.07552944,3107.4,3107.0,0.4432644]
[1738111137692,0.07552944,3107.4,3107.2,3.21826]
[1738111137860,0.07552944,3107.4,3107.1,3.76834]
[1738111138059,3.25803621,3107.7,3107.0,0.4432644]
[1738111138259,0.07541271,3107.3,3107.0,0.4432644]
[1738111138496,3.25803621,3107.7,3107.1,0.40648484]
[1738111138497,3.21792,3107.6,3107.1,0.40648484]
[1738111138729,0.07541271,3107.2,3107.1,0.40648484]
[1738111139000,3.2580383,3107.7,3107.1,0.40648484]
[1738111139159,0.07541271,3107.2,3106.9,3.21855]
[1738111139496,3.21792,3107.6,3107.0,3.21849]
[1738111139695,0.07541271,3107.1,3107.0,3.21849]
[1738111139896,3.21792,3107.6,3107.0,3.21849]
[1738111140198,3.25833008,3107.5,3107.0,0.724804]
[1738111140494,0.07541271,3107.4,3107.0,0.724804]
[1738111140674,0.07541271,3107.4,3107.1,3.21842]
[1738111141073,3.21784,3107.7,3107.1,3.21842]
[1738111141271,0.07541271,3107.3,3107.0,0.724804]
[1738111141482,0.04023007,3107.6,3107.0,3.943314]
[1738111141663,0.07541271,3107.2,3107.0,3.943314]
[1738111141864,3.21792,3107.6,3107.1,0.7161854]
[1738111142087,3.21792,3107.6,3107.0,3.21851]
[1738111142284,3.29343271,3107.5,3107.0,3.21851]
[1738111142505,3.2185,3107.1,3106.5,4.04467]
[1738111142669,3.21865,3106.9,3106.3,3.21923]
[1738111143003,0.1153955,3106.8,3106.3,3.945617]
[1738111143329,0.1153955,3106.8,3106.4,3.0]
[1738111143489,0.1153955,3106.8,3106.1,3.21943]
[1738111143490,0.7913,3106.7,3106.1,3.21943]
[1738111143807,0.07489771,3106.6,3106.2,6.21935]
[1738111143965,0.07489771,3106.6,3106.3,0.943878]
[1738111144669,0.07489771,3106.6,3106.2,3.0]
[1738111144873,0.07489771,3106.6,3106.2,6.21934]
[1738111145093,0.07489771,3106.6,3106.3,3.21924]
[1738111145404,0.07489771,3106.6,3106.5,4.55555]
[1738111145625,3.98783,3107.5,3106.8,3.21865]
[1738111145971,3.21822,3107.3,3106.6,3.21891]
[1738111146295,3.29281851,3107.4,3106.8,3.21874]
[1738111146498,3.21823,3107.3,3106.8,3.21874]
[1738111146805,0.07469851,3107.3,3106.9,3.21857]
[1738111146985,3.98783,3107.5,3106.9,3.86551971]
[1738111147187,0.04023199,3107.4,3106.6,3.2189]
[1738111147383,0.7505,3106.9,3106.2,4.01052]
[1738111147583,0.7505,3106.9,3106.2,4.01048]
[1738111147907,3.29345851,3106.8,3106.3,3.21925]
[1738111148111,3.29345851,3106.8,3106.2,0.7912]
[1738111148296,3.25908746,3106.7,3106.2,0.401073]
[1738111148489,3.29345851,3106.8,3106.2,3.620393]
[1738111148689,3.96919,3106.9,3106.3,3.21922]
[1738111148890,3.96919,3106.9,3106.2,3.620393]
[1738111148891,0.07469851,3106.7,3106.2,3.620393]
[1738111149088,0.07469851,3106.7,3106.4,3.21914]
[1738111149288,3.96919,3106.9,3106.4,3.9030933]
[1738111149490,0.07469851,3106.6,3106.4,3.9030933]
[1738111149696,3.96919,3106.9,3106.4,3.9030933]
[1738111150018,3.96919,3106.9,3106.2,6.839673]
[1738111150223,3.29345851,3106.8,3106.2,3.620353]
[1738111150716,3.2189,3106.7,3106.2,0.401073]
[1738111150916,3.21902,3106.6,3106.1,3.0]
[1738111151222,0.07469851,3106.5,3106.1,3.0]
[1738111151389,3.2189,3106.7,3106.1,6.21945]
[1738111151590,3.96918,3106.9,3105.9,0.7912]
[1738111151591,0.07469851,3106.6,3105.9,0.7912]
[1738111151785,0.07469851,3106.6,3106.0,3.68537913]
[1738111152518,0.07469851,3106.6,3106.1,6.21944]
[1738111153288,0.07469851,3106.6,3106.3,3.21925]
[1738111153600,3.96917,3106.9,3106.4,3.21915]
[1738111153795,0.813,3107.3,3106.6,3.21893]
[1738111154007,3.21845,3107.1,3106.5,0.8314]
[1738111154198,3.25868519,3107.1,3106.5,1.236461]
[1738111154520,0.07421088,3107.0,3106.7,3.21881]
[1738111154817,0.813,3107.3,3106.7,3.21881]
[1738111155017,0.07421088,3107.2,3106.6,0.55]
[1738111155226,3.21843,3107.1,3106.6,3.76895]
[1738111155426,3.21843,3107.1,3106.7,0.8224411]
[1738111155633,0.07421088,3107.0,3106.7,0.8224411]
[1738111155843,3.33299349,3107.0,3106.5,4.0504]
[1738111155992,3.29276088,3107.0,3106.5,4.0504]
[1738111156498,3.33299607,3107.0,3106.5,0.8314]
[1738111156891,3.29276088,3107.0,3106.3,3.21919]
[1738111157097,3.21864,3106.9,3106.4,0.321919]
[1738111157635,0.07435513,3106.8,3106.4,0.321919]
[1738111158434,3.29309513,3106.8,3106.4,0.321919]
[1738111159799,3.21904,3106.6,3106.4,0.321919]
[1738111160112,3.21922,3106.4,3106.0,0.46580913]
[1738111160311,3.21922,3106.4,3105.8,0.55]
[1738111160738,0.07429331,3106.3,3106.0,0.55]
[1738111161307,0.07429331,3106.3,3105.8,0.55]
[1738111161520,0.07429331,3106.3,3106.0,3.21955]
[1738111161699,0.07429331,3106.3,3106.2,3.76936]
[1738111161901,0.7896,3106.7,3106.2,3.76936]
[1738111162100,0.07407348,3106.3,3106.2,3.76936]
[1738111162299,4.00844,3106.7,3106.1,1.133755]
[1738111162497,0.07407348,3106.3,3106.1,0.321955]
[1738111162830,4.00844,3106.7,3106.1,0.321955]
[1738111163233,3.29311348,3106.6,3106.1,0.321955]
[1738111163739,3.21907,3106.5,3106.1,0.321955]
[1738111163935,3.21907,3106.5,3105.9,6.21967]
[1738111164132,7.22736,3106.7,3106.0,3.76956]
[1738111164338,0.07407348,3106.4,3106.0,3.76956]
[1738111164541,3.21897,3106.6,3106.0,3.76956]
[1738111164739,0.07407348,3106.3,3106.0,3.76956]
[1738111165035,0.07407348,3106.2,3106.1,0.676956]
[1738111165237,4.00844,3106.7,3106.1,0.676956]
[1738111165438,3.21908,3106.5,3106.0,0.55]
[1738111165638,3.21908,3106.5,3105.9,3.0]
[1738111165639,3.21917,3106.4,3105.9,3.0]
[1738111165839,0.07407348,3106.3,3105.8,0.8118]
[1738111166137,0.07407348,3106.3,3105.9,3.0]
[1738111166438,0.07407348,3106.3,3105.9,3.21967]
[1738111166603,0.07400475,3106.2,3106.0,0.403147]
[1738111166809,3.21908,3106.5,3106.0,0.403147]
[1738111167015,3.21908,3106.5,3105.8,4.03157]
[1738111167305,3.21965,3106.0,3105.3,3.97243]
[1738111167505,0.7825,3106.3,3105.3,3.97243]
[1738111167506,3.21975,3105.9,3105.3,0.7522]
[1738111167758,3.21975,3105.9,3105.4,0.03219857]
[1738111167956,0.07400475,3105.8,3105.4,0.55]
[1738111168156,0.07400475,3105.8,3105.5,0.43022]
[1738111168357,0.07400475,3105.8,3105.7,3.76988]
[1738111168522,0.07400475,3105.8,3105.7,6.80207448]
[1738111168725,3.21916,3106.4,3105.8,4.3699]
[1738111169110,0.07400475,3106.3,3105.8,4.3699]
[1738111169350,0.07400475,3106.3,3105.9,0.758978]
[1738111169665,3.29326475,3106.3,3105.5,4.46965]
[1738111169965,0.7767,3106.0,3105.5,0.43022]
[1738111170109,3.2197,3105.9,3105.2,4.00705857]
[1738111170305,3.2197,3105.9,3105.3,6.22029]
[1738111170610,0.07400475,3105.8,3105.4,0.55]
[1738111171536,0.7767,3106.0,3105.4,0.55]
[1738111171713,3.99634,3106.0,3105.4,0.55]
[1738111171913,0.07400475,3105.9,3105.4,0.55]
[1738111172109,3.29371475,3105.9,3105.4,1.302479]
[1738111172316,0.07400475,3105.9,3105.4,1.302479]
[1738111172651,0.07400475,3105.9,3105.4,0.752479]
[1738111173151,3.29368475,3105.9,3105.4,0.752479]
[1738111173347,0.07400475,3105.9,3105.4,0.752479]
[1738111174751,3.29367475,3105.9,3105.4,0.752479]
[1738111175666,0.07400475,3105.9,3105.4,0.752479]